[Event "4NCL 2nd Div 2023-24"]
[Site "Daventry"]
[Date "2024.05.05"]
[Round "10.3"]
[White "Blackburn, Jonathan L B"]
[Black "Li, Henry"]
[Result "1-0"]
[ECO "E93"]
[WhiteElo "2203"]
[BlackElo "2288"]
[Annotator "TA"]
[PlyCount "94"]
[EventDate "2023.11.11"]
[EventType "team-tourn"]
[EventCountry "ENG"]
[SourceTitle "playchess.com"]
[Source "ChessBase"]
[SourceQuality "1"]
[TimeControl "40/6000+30:3000+30"]

{[%evp 18,93,45,46,40,43,47,54,101,68,105,57,65,0,40,41,60,20,18,0,116,122,113,56,50,0,0,0,38,0,0,-6,0,-20,-74,-83,-76,-35,269,243,292,300,307,297,655,618,737,763,694,686,663,398,712,357,501,404,355,8,724,389,354,-167,-176,-174,-174,-5026,-4133,-29992,-29993,-29993,-29994,-29995,-29996,-29996,-29997,-29997,-29998,-29999]} 1. d4 {[%emt 0:00:02]} Nf6 {[%emt 0:00:27]} 2. c4 {[%emt 0:00:04]} g6 {[%emt 0:00:33]} 3. Nc3 {[%emt 0:00:05]} Bg7 {[%emt 0:00:07]} 4. e4 {[%emt 0:00:03]} d6 {[%emt 0:00:23]} 5. Be2 {[%emt 0:00:21]} O-O {[%emt 0:01:04]} 6. Nf3 {[%emt 0:00:17]} e5 {[%emt 0:01:52]} 7. d5 {[%emt 0:00:10]} Na6 {[%emt 0:00:39]} 8. h3 {[%emt 0:00:58]} Nc5 {[%emt 0:02:29]} 9. Qc2 {[%emt 0:00:17]} a5 {[%emt 0:01:48]} 10. Be3 {[%emt 0:00:21]} Ne8 {[%emt 0:17:46]} 11. g4 {[%emt 0:00:39]} c6 {[%emt 0:07:50]} 12. O-O-O {[%emt 0:06:18]} Na6 {[%emt 0:12:12]} (12... cxd5 $14 13. Rxd5 (13. cxd5 Bd7 $14) (13. Nxd5 b6 $14) (13. exd5 f5 $14) 13... Qe7) 13. Qb3 {[%emt 0:27:00] White has more active pieces.} cxd5 {[%emt 0:07:37]} 14. cxd5 {[%emt 0:03:41]} (14. exd5 f5 $14) (14. Nxd5 $16 Nf6 15. Nc3) 14... Nc5 $14 {[%emt 0:04:14]} 15. Qc2 {[%emt 0:09:09]} (15. Bxc5 $14 dxc5 16. a4) 15... b6 {[%emt 0:00:49][%cal Bb7b6,Bb6b5][%mdl 32]} (15... Bd7 $5) 16. Kb1 {[%emt 0:03:26]} Nc7 {[%emt 0:00:44]} 17. Rdg1 {[%emt 0:06:21]} Bd7 {[%emt 0:01:31]} 18. h4 {[%emt 0:01:30][%cal Bh3h4,Bh4h5][%mdl 32]} Qb8 {[%emt 0:06:10]} (18... b5 $11) 19. h5 $16 {[%emt 0:04:24]} b5 {[%emt 0:00:04]} 20. Bxc5 {[%emt 0:10:43]} (20. hxg6 $16 hxg6 21. g5) 20... dxc5 $14 {[%emt 0:00:07]} 21. Nd1 {[%emt 0:00:26]} (21. hxg6 $14 fxg6 22. g5) 21... c4 $11 {[%emt 0:01:04]} 22. Ne3 {[%emt 0:01:09]} Qb6 {[%emt 0:04:46]} 23. g5 {[%emt 0:08:32][%cal Oa2a4]} (23. hxg6 $5 hxg6 (23... fxg6 24. Nf5 $11) 24. Nf5 gxf5 25. gxf5 $18) 23... Na6 {[%emt 0:04:40]} 24. Rh2 {[%emt 0:02:41][%cal Bh1h2,Bh2h7,Bh7g7][%mdl 32]} a4 {[%emt 0:03:18][%cal Oa4a3] Strongly threatening ...a3!} 25. Rgh1 {[%emt 0:01:45] [#]} a3 $1 {[%emt 0:00:57] Hoping for ...Nb4.} 26. hxg6 {[%emt 0:01:07]} fxg6 {[%emt 0:01:04] aiming for ...axb2.} 27. Rxh7 {[%emt 0:00:44] Qc3 is the strong threat.} axb2 $2 {[%emt 0:00:49][%mdl 8192]} (27... Qd6 $15 {keeps the upper hand.}) 28. Qxb2 $18 {[%emt 0:01:03]} Qd6 {[%emt 0:08:50] [#]} 29. Rxg7+ $1 {[%emt 0:07:35][%mdl 512]} Kxg7 {[%emt 0:00:04]} 30. Nxe5 {[%emt 0:00:08] Excellent horsemanship.} (30. Qxe5+ Qxe5 31. Nxe5 Rxf2 $17) 30... c3 {[%emt 0:00:51]} (30... Qb4 31. Nxd7+ Qxb2+ 32. Kxb2 Rxf2) 31. Qxc3 {[%emt 0:01:08]} Qb4+ {[%emt 0:00:04]} 32. Qxb4 {[%emt 0:00:03]} Nxb4 {[%emt 0:00:02]} 33. Nxd7 {[%emt 0:01:00]} Rxf2 {[%emt 0:00:07]} 34. Bxb5 {[%emt 0:07:53]} Rfxa2 $2 {[%emt 0:00:26]} (34... Raxa2 35. Nc4 Nd3) 35. Rh6 {[%emt 0:00:48]} R8a3 {[%emt 0:00:20]} (35... R2a3 {was worth a try.}) 36. Bc4 {[%emt 0:01:27]} Rd2 {[%emt 0:06:23]} 37. Rh3 {[%emt 0:00:54]} (37. Nf5+ $18 gxf5 38. exf5 Nxd5 39. Rg6+ Kf7 40. Nf6) 37... Nc2 $2 {[%emt 0:01:06][%mdl 8192]} 38. Nf1 {[%emt 0:05:18]} Rf2 {[%emt 0:01:18] [#]} 39. Rh4 {[%emt 0:00:00][%mdl 8192]} (39. Rh2 $1 $18 {[%cal Rh2f2] was the only winning move.} Ra1+ 40. Kb2 Raxf1 41. Rxf2 Rxf2 42. Kc3) 39... Rc3 $36 {[%emt 0:01:32][%mdl 2048] Black has strong initiative.} 40. Kb2 {[%emt 0:00:15]} Rxc4 {[%emt 0:00:17]} 41. Kb3 $2 {[%emt 0:06:45]} (41. Rh2 Rxh2 (41... Rxf1 42. Rxc2 Rb4+ 43. Kc3 $15) 42. Nxh2) 41... Rc7 {[%emt 0:10:43] ( -> ...Na1+)} 42. Nf6 {[%emt 0:00:54]} Nd4+ {[%emt 0:03:31] Black mates.} (42... Rxf1 $2 43. Rh7+ Kf8 44. Rxc7 Nd4+ 45. Kb2 Rf2+ 46. Kc1 $18) 43. Ka3 {[%emt 0:01:16]} Rf3+ {[%emt 0:00:55]} (43... Rxf1 $2 {is the wrong capture.} 44. Ne8+ (44. Rh7+ Kf8 $11) 44... Kg8 45. Nxc7 $18) 44. Ka4 {[%emt 0:01:00]} Rc4+ {[%emt 0:00:18]} (44... Rxf1 $2 {perishes.} 45. Rh7+ Kf8 46. Rxc7 $18) 45. Ka5 {[%emt 0:00:03]} Ra3+ {[%emt 0:00:08]} 46. Kb6 {[%emt 0:00:18]} Rb3+ {[%emt 0:00:09]} 47. Ka6 {[%emt 0:00:06]} Ra4# {[%emt 0:00:36][%mdl 32768] Weighted Error Value: White=1.08/Black=0.45.  Loses game:     	---       	Black=2      Missed win:     	White=1     	---        Mistake:       	White=5     	Black=4      Inaccurate:     	White=5     	Black=3      OK:         	White=4     	Black=10     Best:        	White=5     	Black=4      Brilliant:      	White=1     	---       . Loss on time!?} 1-0

[Event "4NCL 2nd Div 2023-24"]
[Site "Daventry"]
[Date "2024.05.05"]
[Round "10.4"]
[White "Wall, Gavin"]
[Black "Rees, Ioan"]
[Result "0-1"]
[ECO "C54"]
[WhiteElo "2281"]
[BlackElo "2245"]
[Annotator "TA"]
[PlyCount "98"]
[EventDate "2023.11.11"]
[EventType "team-tourn"]
[EventCountry "ENG"]
[SourceTitle "playchess.com"]
[Source "ChessBase"]
[SourceQuality "1"]
[TimeControl "40/6000+30:3000+30"]

{[%evp 13,98,11,14,8,24,22,37,36,25,-16,12,-17,-12,-13,-3,-24,-34,-79,-87,-64,-83,-64,-44,-45,-33,-21,-27,-47,-35,-58,-58,-37,-36,-66,-33,-41,-37,-25,-37,-113,-121,-425,-64,-212,-149,-372,-183,-385,-333,-362,-388,-384,-377,-375,-364,-383,-384,-357,-277,-411,-415,-515,-504,-520,-516,-515,-485,-458,-281,-278,-252,-449,-442,-422,-441,-451,-430,-697,-697,-697,-663,-672,-649,-29966,-11246,-29970,-29969]} 1. e4 {[%emt 0:00:02]} e5 {[%emt 0:02:59]} 2. Nf3 {[%emt 0:00:10]} Nc6 {[%emt 0:00:11]} 3. Bc4 {[%emt 0:00:05]} Bc5 {[%emt 0:00:05]} 4. c3 {[%emt 0:01:07]} Nf6 {[%emt 0:00:05]} 5. d3 {[%emt 0:00:28]} a6 {[%emt 0:00:06]} 6. O-O {[%emt 0:00:36]} d6 {[%emt 0:00:52]} 7. a4 {[%emt 0:02:14]} h6 {[%emt 0:02:04]} 8. Re1 {[%emt 0:06:31]} Ba7 {[%emt 0:01:08]} 9. Nbd2 {[%emt 0:02:47]} Be6 {[%emt 0:00:09]} 10. Bxe6 {[%emt 0:27:15] White is slightly better.} fxe6 {[%emt 0:00:04]} 11. Nb3 {[%emt 0:01:10]} O-O {[%emt 0:07:59]} 12. d4 {[%emt 0:01:59]} Qe8 {[%emt 0:13:21]} 13. Be3 {[%emt 0:18:54]} Ng4 {[%emt 0:06:41]} (13... Nxe4 $6 14. d5 $16) 14. h3 {[%emt 0:07:26]} Nxe3 {[%emt 0:01:27]} 15. Rxe3 {[%emt 0:00:05]} Qg6 {[%emt 0:05:46]} 16. Qd3 {[%emt 0:05:29]} Rf7 {[%emt 0:07:51]} 17. Nh2 {[%emt 0:04:12]} Raf8 {[%emt 0:03:59]} 18. Rg3 {[%emt 0:01:31]} Qh5 {[%emt 0:08:18]} 19. Nf3 $1 {[%emt 0:13:30]} Rf4 {[%emt 0:07:17]} 20. Rf1 {[%emt 0:03:36]} Kh8 {[%emt 0:10:47]} (20... Qf7 {simplifies} 21. Qe2 exd4 22. Nbxd4 Nxd4 23. cxd4 c5) 21. d5 {[%emt 0:04:47]} exd5 {[%emt 0:03:25]} 22. Qxd5 {[%emt 0:00:01][%cal Ob3d4]} g5 {[%emt 0:09:14]} (22... Qf7 {simplifies} 23. Qxf7 R4xf7 24. Nc1 Nd8) 23. Nbd2 {[%emt 0:02:21]} g4 {[%emt 0:04:15]} 24. hxg4 {[%emt 0:00:01]} Rxg4 {[%emt 0:00:09]} 25. Rxg4 {[%emt 0:00:03]} Qxg4 {[%emt 0:00:04]} 26. b4 {[%emt 0:03:41] [#]} (26. Nh2 $15 Qg3 27. Ndf3) 26... Nd8 $1 $17 {[%emt 0:01:28] And now ...Rg8 would win. Black is more active.} 27. Kh1 $2 {[%emt 0:02:42][%mdl 8192]} (27. Nh2 $17 {was the crucial defense.} Qg3 28. Nhf3) 27... h5 $2 {[%emt 0:07:41]} (27... Rg8 $19 {[%csl Gg8][%cal Rg4g2]} 28. Ne1 Qh5+ 29. Kg1 Rg6) 28. Qd3 {[%emt 0:00:50]} (28. Nh2 $15 Qe2 29. Ndf3) 28... Rg8 {[%emt 0:01:44]} 29. g3 {[%emt 0:00:10] [#]} (29. Ne1 $17) 29... h4 {[%emt 0:02:00]} (29... Qh3+ $142 $1 {[%mdl 512]} 30. Nh2 h4) 30. Nh2 $2 {[%emt 0:00:08]} (30. Ng1) 30... Qh3 $19 {[%emt 0:00:03][%cal Rh4g3]} 31. Qf3 {[%emt 0:00:10] Qf6+ is the strong threat.} hxg3 {[%emt 0:00:30]} 32. fxg3 {[%emt 0:00:08]} Rxg3 {[%emt 0:01:01]} 33. Qf6+ {[%emt 0:00:56]} Kh7 {[%emt 0:00:10][%csl Gg3][%cal Rh3g2]} 34. Qf5+ {[%emt 0:00:37]} (34. Qe7+ $2 Rg7 $19) 34... Qxf5 {[%emt 0:00:07]} 35. exf5 {[%emt 0:00:04]} d5 {[%emt 0:00:30][%cal Oe5e4] Wards off Ne4} 36. Ndf3 {[%emt 0:00:44]} (36. Nhf3 {was worth a try.} Nf7 37. Kh2) 36... Nf7 {[%emt 0:00:11]} 37. Rd1 {[%emt 0:01:26]} e4 {[%emt 0:00:18]} 38. Nd4 {[%emt 0:00:43]} Rxc3 {[%emt 0:00:58]} 39. Ne6 {[%emt 0:00:27]} c6 {[%emt 0:01:40]} 40. Ng4 {[%emt 0:00:14]} Nh6 {[%emt 0:02:24]} 41. Ng5+ {[%emt 0:02:41]} Kg7 {[%emt 0:00:42]} 42. f6+ $2 {[%emt 0:05:46]} (42. Ne6+ Kh8 43. Nxh6 Rh3+ 44. Kg2 Rxh6 45. b5) 42... Kg6 {[%emt 0:01:22]} 43. Nxh6 {[%emt 0:00:05] f7 would now be deadly.} Kxg5 {[%emt 0:10:32][%mdl 4096] Endgame. KRB-KRN} 44. Rf1 {[%emt 0:03:08]} Bb8 {[%emt 0:04:42]} (44... Kxh6 45. f7 Rh3+ 46. Kg2 $15) ({But not} 44... Rh3+ 45. Kg2 Rxh6 46. f7 $19) 45. Nf7+ {[%emt 0:02:09]} (45. f7 $142 Bd6 (45... Kxh6 46. f8=Q+ Kh5 47. Qh8+ Kg5 48. Qg7+ Kh4 49. Qxc3 d4 50. Qxd4) 46. Nf5 Bxb4 47. Nd4) 45... Kg6 {[%emt 0:36:41]} 46. Nd8 {[%emt 0:00:10]} Rf3 {[%emt 0:00:00]} 47. Rxf3 {[%emt 0:00:12]} exf3 {[%emt 0:00:00]} 48. Nxb7 {[%emt 0:00:15]} Kxf6 {[%emt 0:00:00] ( -> ...Kf5)} 49. Na5 {[%emt 0:02:03]} d4 {[%emt 0:00:00] Weighted Error Value: White=0.74/Black=0.31.  Loses game:     	White=2     	---        Missed win:     	---       	Black=1      Mistake:       	White=6     	Black=1      Inaccurate:     	White=4     	Black=3      OK:         	White=12    	Black=11     Best:        	White=2     	Black=6      Strong:       	White=1     	Black=1} 0-1

[Event "4NCL 2nd Div 2023-24"]
[Site "Daventry"]
[Date "2024.05.05"]
[Round "10.5"]
[White "Bullen, Alex"]
[Black "McPhillips, Karl"]
[Result "1-0"]
[ECO "D02"]
[WhiteElo "2186"]
[BlackElo "2196"]
[Annotator "RC"]
[PlyCount "119"]
[EventDate "2023.11.11"]
[EventType "team-tourn"]
[EventCountry "ENG"]
[SourceTitle "playchess.com"]
[Source "ChessBase"]
[SourceQuality "1"]
[TimeControl "40/6000+30:3000+30"]

1. d4 {[%emt 0:00:03]} d5 {[%emt 0:00:40]} 2. Nf3 {[%emt 0:00:08]} Nc6 {[%emt 0:02:38]} 3. e3 {[%emt 0:00:41]} Bg4 {[%emt 0:03:17]} 4. h3 {[%emt 0:03:17]} Bxf3 {[%emt 0:02:24]} 5. Qxf3 {[%emt 0:00:17]} e5 {[%emt 0:00:37]} 6. Bb5 {[%emt 0:11:34]} e4 {[%emt 0:01:09]} 7. Qd1 {[%emt 0:05:37]} a6 {[%emt 0:01:02]} 8. Bxc6+ {[%emt 0:02:56]} bxc6 {[%emt 0:00:05]} 9. c4 {[%emt 0:00:22]} f5 {[%emt 0:03:03]} 10. Qa4 {[%emt 0:04:44]} Qd7 {[%emt 0:00:45]} 11. Nc3 {[%emt 0:01:09]} Nf6 {[%emt 0:00:23]} 12. Bd2 {[%emt 0:03:41]} c5 {[%emt 0:24:54]} 13. dxc5 {[%emt 0:07:05]} Qxa4 {[%emt 0:16:07]} 14. Nxa4 {[%emt 0:00:10]} dxc4 {[%emt 0:00:07]} 15. Rc1 {[%emt 0:08:48]} Nd7 {[%emt 0:00:56]} 16. Rxc4 {[%emt 0:01:04]} Ne5 {[%emt 0:00:10]} 17. Rc2 {[%emt 0:00:13]} Rb8 {[%emt 0:06:36]} 18. Ke2 {[%emt 0:01:54]} Rb5 {[%emt 0:02:38]} 19. b4 {[%emt 0:01:34]} a5 {[%emt 0:00:55]} 20. a3 {[%emt 0:07:18]} axb4 {[%emt 0:00:10]} 21. Bxb4 {[%emt 0:03:42]} Nd3 {[%emt 0:00:20]} 22. Rb1 {[%emt 0:00:58]} Kd7 {[%emt 0:00:43]} 23. Nc3 {[%emt 0:01:30]} Rb8 {[%emt 0:00:40]} 24. c6+ {[%emt 0:04:59]} Ke6 {[%emt 0:00:22]} 25. Na2 {[%emt 0:05:19]} Bxb4 {[%emt 0:00:31]} 26. axb4 {[%emt 0:05:53]} Rb5 {[%emt 0:00:28]} 27. f3 {[%emt 0:07:39]} Rhb8 {[%emt 0:01:43]} 28. fxe4 {[%emt 0:01:41]} fxe4 {[%emt 0:01:03]} 29. Rc4 {[%emt 0:00:18]} Kd5 {[%emt 0:06:43]} 30. Rxe4 {[%emt 0:03:00]} Kxe4 {[%emt 0:01:00]} 31. Nc3+ {[%emt 0:00:09]} Ke5 {[%emt 0:00:07]} 32. Nxb5 {[%emt 0:00:10]} Rxb5 {[%emt 0:00:18]} 33. Kxd3 {[%emt 0:00:09]} Kd5 {[%emt 0:00:38]} 34. e4+ {[%emt 0:01:48]} Kxc6 {[%emt 0:01:15]} 35. Kc4 {[%emt 0:01:27]} Rg5 {[%emt 0:00:15]} 36. Rb2 {[%emt 0:00:35]} h5 {[%emt 0:00:08]} 37. Re2 {[%emt 0:01:57]} Kd6 {[%emt 0:00:21]} 38. e5+ {[%emt 0:03:33]} Ke6 {[%emt 0:05:37]} 39. Kd4 {[%emt 0:00:18]} Rf5 {[%emt 0:00:42]} 40. b5 {[%emt 0:04:04]} Rf1 {[%emt 0:00:39]} 41. Rc2 {[%emt 0:52:49]} Rd1+ {[%emt 0:50:22]} 42. Ke4 {[%emt 0:00:16]} Re1+ {[%emt 0:01:20]} 43. Kf4 {[%emt 0:00:19]} Rf1+ {[%emt 0:02:15]} 44. Kg5 {[%emt 0:03:54]} Rf5+ {[%emt 0:00:09]} 45. Kg6 {[%emt 0:00:19]} Rxe5 {[%emt 0:00:15]} 46. Rxc7 {[%emt 0:01:01]} Rxb5 {[%emt 0:00:14]} 47. Rxg7 {[%emt 0:00:50]} h4 {[%emt 0:00:11]} 48. Kh6 {[%emt 0:01:42]} Rc5 {[%emt 0:02:15]} 49. Rg5 {[%emt 0:00:00]} Rc8 {[%emt 0:00:00]} 50. Kh5 {[%emt 0:00:00]} Rh8+ {[%emt 0:00:00]} 51. Kg4 {[%emt 0:00:00]} Rh6 {[%emt 0:00:00]} 52. Kf4 {[%emt 0:00:00]} Rf6+ {[%emt 0:00:00]} 53. Ke4 {[%emt 0:00:00]} Rh6 {[%emt 0:00:00]} 54. Ra5 {[%emt 0:00:00]} Rh8 {[%emt 0:00:00]} 55. Ra6+ {[%emt 0:00:00]} Kf7 {[%emt 0:00:00]} 56. Kf5 {[%emt 0:00:00]} Rb8 {[%emt 0:00:00]} 57. Ra7+ {[%emt 0:00:00]} Kg8 {[%emt 0:00:00]} 58. Ra4 {[%emt 0:00:00]} Rb5+ {[%emt 0:00:00]} 59. Kg6 {[%emt 0:00:00]} Rb6+ {[%emt 0:00:00]} 60. Kg5 {[%emt 0:00:00]} 1-0

[Event "4NCL 2nd Div 2023-24"]
[Site "Daventry"]
[Date "2024.05.05"]
[Round "10.6"]
[White "Freeman, Gordon"]
[Black "Taylor, William J"]
[Result "1/2-1/2"]
[ECO "E04"]
[WhiteElo "2062"]
[BlackElo "1972"]
[Annotator "NA RC"]
[PlyCount "61"]
[EventDate "2023.11.11"]
[EventType "team-tourn"]
[EventCountry "ENG"]
[SourceTitle "playchess.com"]
[Source "ChessBase"]
[SourceQuality "1"]
[TimeControl "40/6000+30:3000+30"]

1. d4 {[%emt 0:00:04]} d5 {[%emt 0:01:06]} 2. Nf3 {[%emt 0:00:07]} Nf6 {[%emt 0:00:07]} 3. g3 {[%emt 0:00:05]} e6 {[%emt 0:05:24]} 4. Bg2 {[%emt 0:00:11]} c5 {[%emt 0:00:30]} 5. c4 {[%emt 0:05:14]} dxc4 {[%emt 0:01:33]} 6. Qa4+ {[%emt 0:04:44]} Bd7 {[%emt 0:12:10]} 7. Qxc4 {[%emt 0:00:18]} Nc6 {[%emt 0:00:32]} 8. dxc5 {[%emt 0:06:20]} Qa5+ {[%emt 0:00:35]} 9. Nbd2 {[%emt 0:00:50]} Qxc5 {[%emt 0:01:03]} 10. O-O {[%emt 0:01:59]} Rc8 {[%emt 0:03:14]} 11. Qxc5 {[%emt 0:06:34]} Bxc5 {[%emt 0:00:12]} 12. Nb3 {[%emt 0:01:32]} Bb6 {[%emt 0:04:23]} 13. Bd2 {[%emt 0:05:21]} Ne4 {[%emt 0:14:00]} 14. Bf4 {[%emt 0:02:44]} Bc7 {[%emt 0:00:25]} 15. Bxc7 {[%emt 0:08:10]} Rxc7 {[%emt 0:00:16]} 16. Rac1 {[%emt 0:02:24]} Rc8 {[%emt 0:13:08]} 17. Nfd4 {[%emt 0:11:39]} Nxd4 {[%emt 0:01:05]} 18. Nxd4 {[%emt 0:07:33]} Nd6 {[%emt 0:01:47]} 19. Rxc8+ {[%emt 0:08:12]} Bxc8 {[%emt 0:01:46]} 20. Rc1 {[%emt 0:04:46]} Kd8 {[%emt 0:08:55]} 21. f4 {[%emt 0:06:13]} Re8 {[%emt 0:04:03]} 22. Rc5 {[%emt 0:06:54]} f6 {[%emt 0:14:22]} 23. Kf2 {[%emt 0:06:20]} e5 {[%emt 0:02:38]} 24. fxe5 {[%emt 0:04:19]} Rxe5 {[%emt 0:04:55]} 25. Rxe5 {[%emt 0:01:57]} fxe5 {[%emt 0:00:13]} 26. Nf3 {[%emt 0:01:09]} Nf7 {[%emt 0:00:48]} 27. Nd2 {[%emt 0:02:32]} Nd6 {[%emt 0:06:01]} 28. Ne4 {[%emt 0:01:16]} Nxe4+ {[%emt 0:03:45]} 29. Bxe4 {[%emt 0:00:05]} h6 {[%emt 0:00:09]} 30. Ke3 {[%emt 0:01:25]} b6 {[%emt 0:01:45]} 31. Bb1 {[%emt 0:01:32]} 1/2-1/2

[Event "4NCL 2nd Div 2023-24"]
[Site "Daventry"]
[Date "2024.05.05"]
[Round "10.7"]
[White "Freeland, Alex"]
[Black "Bourached, Anthony"]
[Result "0-1"]
[ECO "D20"]
[WhiteElo "2041"]
[BlackElo "1977"]
[Annotator "NA RC"]
[PlyCount "40"]
[EventDate "2023.11.11"]
[EventType "team-tourn"]
[EventCountry "ENG"]
[SourceTitle "playchess.com"]
[Source "ChessBase"]
[SourceQuality "1"]
[TimeControl "40/6000+30:3000+30"]

1. d4 {[%emt 0:00:01]} d5 {[%emt 0:06:10]} 2. c4 {[%emt 0:00:07]} dxc4 {[%emt 0:00:10]} 3. e4 {[%emt 0:01:30]} b5 {[%emt 0:02:50]} 4. a4 {[%emt 0:02:06]} c6 {[%emt 0:00:42]} 5. axb5 {[%emt 0:03:08]} cxb5 {[%emt 0:00:18]} 6. Nc3 {[%emt 0:00:26]} a6 {[%emt 0:11:43]} 7. Bf4 {[%emt 0:14:30]} Bb7 {[%emt 0:02:33]} 8. Nf3 {[%emt 0:03:13]} e6 {[%emt 0:03:55]} 9. Be2 {[%emt 0:00:56]} Nf6 {[%emt 0:00:56]} 10. Ne5 {[%emt 0:10:39]} Nxe4 {[%emt 0:06:30]} 11. Bf3 {[%emt 0:08:51]} Nxc3 {[%emt 0:14:28]} 12. bxc3 {[%emt 0:00:19]} Bxf3 {[%emt 0:06:52]} 13. Qxf3 {[%emt 0:00:18]} Qd5 {[%emt 0:02:33]} 14. Qh5 {[%emt 0:03:14]} Ra7 {[%emt 0:07:11]} 15. O-O {[%emt 0:00:54]} Bd6 {[%emt 0:03:28]} 16. Rfe1 {[%emt 0:04:31]} O-O {[%emt 0:00:42]} 17. Re3 {[%emt 0:00:15]} f6 {[%emt 0:11:05]} 18. Rh3 {[%emt 0:00:18]} g6 {[%emt 0:00:49]} 19. Nxg6 {[%emt 0:00:08]} Qxh5 {[%emt 0:00:22]} 20. Rxh5 {[%emt 0:00:59]} hxg6 {[%emt 0:00:31]} 0-1

[Event "4NCL 2nd Div 2023-24"]
[Site "Daventry"]
[Date "2024.05.05"]
[Round "10.8"]
[White "Putar, Lara"]
[Black "Smith, Lynda"]
[Result "0-1"]
[ECO "A92"]
[WhiteElo "1982"]
[BlackElo "1860"]
[Annotator "NA RC"]
[PlyCount "75"]
[EventDate "2023.11.11"]
[EventType "team-tourn"]
[EventCountry "ENG"]
[SourceTitle "playchess.com"]
[Source "ChessBase"]
[SourceQuality "1"]
[TimeControl "40/6000+30:3000+30"]

1. d4 {[%emt 0:00:03]} d5 {[%emt 0:00:09]} 2. c4 {[%emt 0:00:06]} e6 {[%emt 0:00:07]} 3. Nf3 {[%emt 0:00:46]} f5 {[%emt 0:00:23]} 4. g3 {[%emt 0:00:47]} Nf6 {[%emt 0:00:57]} 5. Bg2 {[%emt 0:00:26]} c6 {[%emt 0:01:19]} 6. O-O {[%emt 0:00:34]} Be7 {[%emt 0:00:19]} 7. Qc2 {[%emt 0:12:12]} O-O {[%emt 0:02:01]} 8. Bf4 {[%emt 0:02:53]} Ne4 {[%emt 0:02:22]} 9. h4 {[%emt 0:05:24]} Nd7 {[%emt 0:04:53]} 10. Nc3 {[%emt 0:03:30]} Ndf6 {[%emt 0:04:28]} 11. e3 {[%emt 0:03:33]} Bd7 {[%emt 0:05:23]} 12. Ne2 {[%emt 0:03:08]} Rc8 {[%emt 0:03:46]} 13. Ne5 {[%emt 0:12:28]} Nh5 {[%emt 0:06:58]} 14. Bf3 {[%emt 0:06:08]} Nxf4 {[%emt 0:01:05]} 15. Nxf4 {[%emt 0:00:36]} Rf6 {[%emt 0:06:07]} 16. Kg2 {[%emt 0:04:19]} Bd6 {[%emt 0:04:45]} 17. Rh1 {[%emt 0:05:58]} Qc7 {[%emt 0:03:52]} 18. Nfd3 {[%emt 0:11:55]} Rh6 {[%emt 0:03:50]} 19. c5 {[%emt 0:05:18]} Be7 {[%emt 0:03:21]} 20. b4 {[%emt 0:07:27]} Rf8 {[%emt 0:10:57]} 21. Nf4 {[%emt 0:02:20]} Bf6 {[%emt 0:01:41]} 22. Qb2 {[%emt 0:00:49]} g5 {[%emt 0:02:17]} 23. hxg5 {[%emt 0:01:17]} Rxh1 {[%emt 0:00:42]} 24. Rxh1 {[%emt 0:00:24]} Bxe5 {[%emt 0:01:35]} 25. dxe5 {[%emt 0:00:34]} Nxg5 {[%emt 0:00:06]} 26. Nh5 {[%emt 0:04:02]} Rf7 {[%emt 0:02:34]} 27. Nf6+ {[%emt 0:00:57]} Kf8 {[%emt 0:02:49]} 28. Rh5 {[%emt 0:01:15]} Nxf3 {[%emt 0:01:51]} 29. Kxf3 {[%emt 0:00:12]} Be8 {[%emt 0:01:10]} 30. Rh6 {[%emt 0:01:47]} Qe7 {[%emt 0:05:56]} 31. Qd4 {[%emt 0:04:52]} Rg7 {[%emt 0:01:30]} 32. Qh4 {[%emt 0:01:01]} Bg6 {[%emt 0:00:45]} 33. a4 {[%emt 0:02:45]} Qc7 {[%emt 0:06:44]} 34. Kf4 {[%emt 0:04:51]} a5 {[%emt 0:02:36]} 35. bxa5 {[%emt 0:02:37]} Qxa5 {[%emt 0:00:41]} 36. Nxh7+ {[%emt 0:00:30]} Rxh7 {[%emt 0:00:57]} 37. Qf6+ {[%emt 0:00:39]} Rf7 {[%emt 0:00:09]} 38. Rh8# {[%emt 0:00:06]} 0-1